[Event "Titled Tuesday Blitz May 30 Early 2023"]
[White "Ladan, Nicholas"]
[Black "Estrada Nieto, Julian"]
[WhiteFideId "30918855"]
[BlackFideId "5101018"]
[WhiteElo "2167"]
[BlackElo "2161"]
[Result "0-1"]
[Round "06"]
[TimeControl "180+2"]
[Date "2023.05.30"]
[WhiteClock "0:00:04"]
[BlackClock "0:00:13"]

1. d4 {[%clk 0:02:59]}  Nf6 {[%clk 0:02:57]} 2. c3 {[%clk 0:02:59]}  d5 {[%clk 0:02:57]} 3. Bg5 {[%clk 0:02:59]}  c6 {[%clk 0:02:55]} 4. e3 {[%clk 0:02:58]}  Bf5 {[%clk 0:02:54]} 5. Bd3 {[%clk 0:02:56]}  Bxd3 {[%clk 0:02:54]} 6. Qxd3 {[%clk 0:02:57]}  Nbd7 {[%clk 0:02:54]} 7. Nd2 {[%clk 0:02:57]}  e6 {[%clk 0:02:53]} 8. e4 {[%clk 0:02:57]}  dxe4 {[%clk 0:02:53]} 9. Nxe4 {[%clk 0:02:58]}  Be7 {[%clk 0:02:53]} 10. Nf3 {[%clk 0:02:55]}  O-O {[%clk 0:02:52]} 11. O-O {[%clk 0:02:54]}  Nxe4 {[%clk 0:02:50]} 12. Bxe7 {[%clk 0:02:50]}  Nxf2 {[%clk 0:02:31]} 13. Qxh7+ {[%clk 0:02:37]}  Kxh7 {[%clk 0:02:31]} 14. Bxd8 {[%clk 0:02:37]}  Nh3+ {[%clk 0:02:16]} 15. gxh3 {[%clk 0:02:36]}  Raxd8 {[%clk 0:02:16]} 16. Ng5+ {[%clk 0:02:25]}  Kg8 {[%clk 0:02:16]} 17. Rf2 {[%clk 0:02:12]}  Nf6 {[%clk 0:02:05]} 18. Re1 {[%clk 0:02:03]}  Rd5 {[%clk 0:02:03]} 19. h4 {[%clk 0:02:01]}  Rfd8 {[%clk 0:01:57]} 20. Ne4 {[%clk 0:01:46]}  Nxe4 {[%clk 0:01:53]} 21. Rxe4 {[%clk 0:01:47]}  c5 {[%clk 0:01:50]} 22. dxc5 {[%clk 0:01:25]}  Rxc5 {[%clk 0:01:50]} 23. Rb4 {[%clk 0:01:15]}  b6 {[%clk 0:01:49]} 24. a4 {[%clk 0:01:14]}  Rcd5 {[%clk 0:01:35]} 25. Kg2 {[%clk 0:01:12]}  Rd2 {[%clk 0:01:31]} 26. Rb5 {[%clk 0:00:51]}  Rxf2+ {[%clk 0:01:17]} 27. Kxf2 {[%clk 0:00:52]}  Rd2+ {[%clk 0:01:17]} 28. Kg3 {[%clk 0:00:45]}  f5 {[%clk 0:01:08]} 29. a5 {[%clk 0:00:34]}  bxa5 {[%clk 0:01:08]} 30. Rxa5 {[%clk 0:00:35]}  Rxb2 {[%clk 0:01:08]} 31. Rxa7 {[%clk 0:00:34]}  Rc2 {[%clk 0:01:01]} 32. Rc7 {[%clk 0:00:32]}  e5 {[%clk 0:00:59]} 33. Rc5 {[%clk 0:00:29]}  Re2 {[%clk 0:00:54]} 34. h5 {[%clk 0:00:26]}  Kf7 {[%clk 0:00:53]} 35. Kh4 {[%clk 0:00:20]}  Rxh2+ {[%clk 0:00:51]} 36. Kg5 {[%clk 0:00:20]}  Rh3 {[%clk 0:00:32]} 37. Rc7+ {[%clk 0:00:15]}  Ke6 {[%clk 0:00:32]} 38. Rxg7 {[%clk 0:00:03]}  f4 {[%clk 0:00:23]} 39. Rg6+ {[%clk 0:00:02]}  Kd5 {[%clk 0:00:23]} 40. Rf6 {[%clk 0:00:03]}  Rg3+ {[%clk 0:00:19]} 41. Kh4 {[%clk 0:00:01]}  Rxc3 {[%clk 0:00:20]} 42. h6 {[%clk 0:00:02]}  Rc1 {[%clk 0:00:20]} 43. Kg4 {[%clk 0:00:01]}  Rh1 {[%clk 0:00:17]} 44. Kf3 {[%clk 0:00:02]}  Rh3+ {[%clk 0:00:17]} 45. Kf2 {[%clk 0:00:01]}  Ke4 {[%clk 0:00:17]} 46. Re6 {[%clk 0:00:01]}  Rh5 {[%clk 0:00:15]} 47. Rc6 {[%clk 0:00:01]}  Kf5 {[%clk 0:00:15]} 48. Kf3 {[%clk 0:00:01]}  Rh3+ {[%clk 0:00:14]} 49. Kf2 {[%clk 0:00:02]}  e4 {[%clk 0:00:13]} 50. Rc5+ {[%clk 0:00:03]}  Kg4 {[%clk 0:00:13]} 51. Re5 {[%clk 0:00:03]}  e3+ {[%clk 0:00:12]} 52. Ke2 {[%clk 0:00:03]}  Rh2+ {[%clk 0:00:12]} 53. Ke1 {[%clk 0:00:04]}  Kf3 {[%clk 0:00:13]} 54. Rg5 {[%clk 0:00:04]}  Rh1+ {[%clk 0:00:13]} 55. Rg1 {[%clk 0:00:04]}  Rxg1# {[%clk 0:00:13]} 0-1


[Site "https://www.chess.com"]

[Event "Titled Tuesday Blitz May 30 Early 2023"]
[White "Matveeva, Olga"]
[Black "surrenderPLS"]
[WhiteFideId "24107018"]
[WhiteElo "2009"]
[BlackElo "2506"]
[Result "1/2-1/2"]
[Round "06"]
[TimeControl "180+2"]
[Date "2023.05.30"]
[WhiteClock "0:00:39"]
[BlackClock "0:00:03"]

1. d4 {[%clk 0:03:00]}  Nf6 {[%clk 0:02:57]} 2. c4 {[%clk 0:03:01]}  e6 {[%clk 0:02:55]} 3. g3 {[%clk 0:03:01]}  c5 {[%clk 0:02:53]} 4. d5 {[%clk 0:03:01]}  d6 {[%clk 0:02:53]} 5. Nc3 {[%clk 0:02:59]}  exd5 {[%clk 0:02:53]} 6. cxd5 {[%clk 0:03:00]}  g6 {[%clk 0:02:53]} 7. Bg2 {[%clk 0:03:00]}  Bg7 {[%clk 0:02:53]} 8. Nf3 {[%clk 0:03:00]}  O-O {[%clk 0:02:53]} 9. O-O {[%clk 0:03:01]}  Re8 {[%clk 0:02:53]} 10. Nd2 {[%clk 0:02:52]}  a6 {[%clk 0:02:52]} 11. a4 {[%clk 0:02:51]}  Nbd7 {[%clk 0:02:50]} 12. h3 {[%clk 0:02:52]}  Rb8 {[%clk 0:02:49]} 13. Nc4 {[%clk 0:02:50]}  Ne5 {[%clk 0:02:49]} 14. Na3 {[%clk 0:02:50]}  Nh5 {[%clk 0:02:47]} 15. e4 {[%clk 0:02:48]}  Bd7 {[%clk 0:01:49]} 16. a5 {[%clk 0:02:46]}  b5 {[%clk 0:01:42]} 17. axb6 {[%clk 0:02:47]}  Bb5 {[%clk 0:01:41]} 18. Naxb5 {[%clk 0:02:40]}  axb5 {[%clk 0:01:42]} 19. Nxb5 {[%clk 0:02:41]}  Qxb6 {[%clk 0:01:36]} 20. Nc3 {[%clk 0:02:39]}  c4 {[%clk 0:01:31]} 21. Kh2 {[%clk 0:02:34]}  Nd3 {[%clk 0:01:20]} 22. Na4 {[%clk 0:02:16]}  Qb5 {[%clk 0:00:59]} 23. Nc3 {[%clk 0:02:04]}  Qb3 {[%clk 0:00:40]} 24. Qxb3 {[%clk 0:01:50]}  Rxb3 {[%clk 0:00:41]} 25. Ra6 {[%clk 0:01:29]}  Nxc1 {[%clk 0:00:31]} 26. Rxc1 {[%clk 0:01:27]}  Rxb2 {[%clk 0:00:27]} 27. Nd1 {[%clk 0:01:17]}  Rd2 {[%clk 0:00:20]} 28. Rxd6 {[%clk 0:01:13]}  c3 {[%clk 0:00:18]} 29. Rc6 {[%clk 0:01:12]}  Be5 {[%clk 0:00:11]} 30. Kg1 {[%clk 0:01:11]}  Bd4 {[%clk 0:00:10]} 31. d6 {[%clk 0:01:01]}  Nxg3 {[%clk 0:00:08]} 32. d7 {[%clk 0:01:01]}  Rf8 {[%clk 0:00:07]} 33. Rc8 {[%clk 0:01:00]}  Bb6 {[%clk 0:00:06]} 34. Nxc3 {[%clk 0:00:56]}  Bxf2+ {[%clk 0:00:04]} 35. Kh2 {[%clk 0:00:54]}  Rxd7 {[%clk 0:00:04]} 36. Nd5 {[%clk 0:00:52]}  Rxc8 {[%clk 0:00:04]} 37. Rxc8+ {[%clk 0:00:51]}  Kg7 {[%clk 0:00:05]} 38. Rc2 {[%clk 0:00:47]}  Be1 {[%clk 0:00:05]} 39. Rc1 {[%clk 0:00:44]}  Bd2 {[%clk 0:00:05]} 40. Rc2 {[%clk 0:00:43]}  Be1 {[%clk 0:00:03]} 41. Rc1 {[%clk 0:00:43]}  Bd2 {[%clk 0:00:03]} 42. Rc2 {[%clk 0:00:39]}  Be1 {[%clk 0:00:03]} 1/2-1/2


[Site "https://www.chess.com"]

[Event "Titled Tuesday Blitz May 30 Early 2023"]
[White "Goffredo_Fofi"]
[Black "Rodrigues Mota, Romulo Cardoso S"]
[BlackFideId "2187442"]
[WhiteElo "2498"]
[BlackElo "1936"]
[Result "1-0"]
[Round "06"]
[TimeControl "180+2"]
[Date "2023.05.30"]
[WhiteClock "0:00:36"]
[BlackClock "0:00:55"]

1. d4 {[%clk 0:03:00]}  Nf6 {[%clk 0:02:57]} 2. Bf4 {[%clk 0:02:53]}  e6 {[%clk 0:02:57]} 3. e3 {[%clk 0:02:53]}  d5 {[%clk 0:02:57]} 4. Nf3 {[%clk 0:02:53]}  Bd6 {[%clk 0:02:56]} 5. Nbd2 {[%clk 0:02:52]}  Bxf4 {[%clk 0:02:55]} 6. exf4 {[%clk 0:02:53]}  O-O {[%clk 0:02:55]} 7. Bd3 {[%clk 0:02:53]}  b6 {[%clk 0:02:53]} 8. Qe2 {[%clk 0:02:49]}  Bb7 {[%clk 0:02:53]} 9. h4 {[%clk 0:02:40]}  c5 {[%clk 0:02:51]} 10. c3 {[%clk 0:02:41]}  cxd4 {[%clk 0:02:22]} 11. cxd4 {[%clk 0:02:41]}  Nc6 {[%clk 0:02:21]} 12. a3 {[%clk 0:02:42]}  a6 {[%clk 0:02:17]} 13. h5 {[%clk 0:02:41]}  b5 {[%clk 0:02:11]} 14. Rh4 {[%clk 0:02:22]}  Qb6 {[%clk 0:02:07]} 15. Nb3 {[%clk 0:02:12]}  Rac8 {[%clk 0:01:46]} 16. Rd1 {[%clk 0:02:10]}  h6 {[%clk 0:01:39]} 17. g4 {[%clk 0:02:10]}  Kh8 {[%clk 0:01:36]} 18. g5 {[%clk 0:02:09]}  Ng8 {[%clk 0:01:37]} 19. Rg4 {[%clk 0:01:58]}  f5 {[%clk 0:01:35]} 20. Rg3 {[%clk 0:01:45]}  Rc7 {[%clk 0:01:29]} 21. Kf1 {[%clk 0:01:42]}  Re7 {[%clk 0:01:27]} 22. Nh4 {[%clk 0:01:37]}  Ree8 {[%clk 0:01:09]} 23. Ng6+ {[%clk 0:01:21]}  Kh7 {[%clk 0:01:06]} 24. Nxf8+ {[%clk 0:01:15]}  Rxf8 {[%clk 0:01:06]} 25. gxh6 {[%clk 0:01:15]}  Nxh6 {[%clk 0:01:06]} 26. Qxe6 {[%clk 0:01:09]}  Rf6 {[%clk 0:01:00]} 27. Qe3 {[%clk 0:00:36]}  Ng4 {[%clk 0:00:55]} 28. Rxg4 {[%clk 0:00:36]} 1-0


[Site "https://www.chess.com"]

[Event "Titled Tuesday Blitz May 30 Early 2023"]
[White "Kaganskiy, Gleb"]
[Black "Yurasova, Daria"]
[WhiteFideId "4132025"]
[BlackFideId "34146919"]
[WhiteElo "2165"]
[BlackElo "2109"]
[Result "1-0"]
[Round "06"]
[TimeControl "180+2"]
[Date "2023.05.30"]
[WhiteClock "0:00:24"]
[BlackClock "0:00:09"]

1. e4 {[%clk 0:03:00]}  e5 {[%clk 0:02:59]} 2. Nf3 {[%clk 0:03:00]}  Nc6 {[%clk 0:02:58]} 3. Bb5 {[%clk 0:03:00]}  a6 {[%clk 0:02:58]} 4. Ba4 {[%clk 0:03:00]}  Nf6 {[%clk 0:02:58]} 5. Nc3 {[%clk 0:02:55]}  b5 {[%clk 0:02:56]} 6. Bb3 {[%clk 0:02:51]}  Be7 {[%clk 0:02:57]} 7. d3 {[%clk 0:02:49]}  O-O {[%clk 0:02:55]} 8. Nd5 {[%clk 0:02:45]}  Nxd5 {[%clk 0:02:49]} 9. exd5 {[%clk 0:02:42]}  Nd4 {[%clk 0:02:49]} 10. Nxe5 {[%clk 0:02:42]}  Nxb3 {[%clk 0:02:46]} 11. axb3 {[%clk 0:02:41]}  Bf6 {[%clk 0:02:44]} 12. d4 {[%clk 0:02:37]}  Bb7 {[%clk 0:02:29]} 13. c4 {[%clk 0:02:29]}  c5 {[%clk 0:01:40]} 14. O-O {[%clk 0:02:08]}  cxd4 {[%clk 0:01:31]} 15. Ng4 {[%clk 0:02:04]}  d6 {[%clk 0:01:24]} 16. Qf3 {[%clk 0:01:50]}  Be5 {[%clk 0:01:22]} 17. Bf4 {[%clk 0:01:25]}  Bxf4 {[%clk 0:01:05]} 18. Qxf4 {[%clk 0:01:25]}  Qb6 {[%clk 0:01:05]} 19. Rad1 {[%clk 0:01:11]}  Rac8 {[%clk 0:01:00]} 20. Rxd4 {[%clk 0:01:09]}  bxc4 {[%clk 0:01:00]} 21. bxc4 {[%clk 0:01:10]}  Qxb2 {[%clk 0:01:01]} 22. Nf6+ {[%clk 0:00:56]}  Kh8 {[%clk 0:00:28]} 23. Qf5 {[%clk 0:00:29]}  g6 {[%clk 0:00:23]} 24. Rh4 {[%clk 0:00:24]}  h5 {[%clk 0:00:09]} 25. Rxh5+ {[%clk 0:00:24]}  gxh5 {[%clk 0:00:09]} 26. Qh7# {[%clk 0:00:24]} 1-0


[Site "https://www.chess.com"]

[Event "Titled Tuesday Blitz May 30 Early 2023"]
[White "Santos Flores, Alberto"]
[Black "Fajdetic, Hrvoje"]
[WhiteFideId "3601234"]
[BlackFideId "14501945"]
[WhiteElo "2235"]
[BlackElo "2185"]
[Result "0-1"]
[Round "06"]
[TimeControl "180+2"]
[Date "2023.05.30"]
[WhiteClock "0:00:07"]
[BlackClock "0:00:14"]

1. e4 {[%clk 0:03:00]}  e6 {[%clk 0:02:57]} 2. d4 {[%clk 0:03:00]}  d5 {[%clk 0:02:58]} 3. Nc3 {[%clk 0:03:00]}  dxe4 {[%clk 0:02:58]} 4. Nxe4 {[%clk 0:03:01]}  Nd7 {[%clk 0:02:58]} 5. g3 {[%clk 0:02:56]}  Ngf6 {[%clk 0:02:59]} 6. Nxf6+ {[%clk 0:02:56]}  Nxf6 {[%clk 0:03:00]} 7. Bg2 {[%clk 0:02:56]}  Bd6 {[%clk 0:02:57]} 8. Nf3 {[%clk 0:02:55]}  O-O {[%clk 0:02:57]} 9. O-O {[%clk 0:02:55]}  Rb8 {[%clk 0:02:55]} 10. Ne5 {[%clk 0:02:54]}  Bxe5 {[%clk 0:02:51]} 11. dxe5 {[%clk 0:02:54]}  Nd7 {[%clk 0:02:51]} 12. f4 {[%clk 0:02:49]}  b6 {[%clk 0:02:51]} 13. Be3 {[%clk 0:02:44]}  Bb7 {[%clk 0:02:49]} 14. Bxb7 {[%clk 0:02:44]}  Rxb7 {[%clk 0:02:50]} 15. Qf3 {[%clk 0:02:42]}  Qc8 {[%clk 0:02:46]} 16. Rad1 {[%clk 0:02:42]}  c5 {[%clk 0:02:26]} 17. Rd6 {[%clk 0:02:38]}  Nb8 {[%clk 0:02:26]} 18. Rfd1 {[%clk 0:02:37]}  Rd7 {[%clk 0:02:23]} 19. Qa8 {[%clk 0:02:29]}  Rxd6 {[%clk 0:02:13]} 20. exd6 {[%clk 0:02:29]}  Qd7 {[%clk 0:02:06]} 21. Qe4 {[%clk 0:02:20]}  Nc6 {[%clk 0:02:04]} 22. c3 {[%clk 0:02:20]}  Rd8 {[%clk 0:01:54]} 23. g4 {[%clk 0:02:13]}  Ne7 {[%clk 0:01:26]} 24. Bf2 {[%clk 0:02:01]}  Nc8 {[%clk 0:01:20]} 25. f5 {[%clk 0:01:55]}  exf5 {[%clk 0:01:07]} 26. gxf5 {[%clk 0:01:51]}  Nxd6 {[%clk 0:01:05]} 27. Qe5 {[%clk 0:01:24]}  f6 {[%clk 0:00:54]} 28. Qd5+ {[%clk 0:01:23]}  Qf7 {[%clk 0:00:53]} 29. Qc6 {[%clk 0:00:29]}  Nb7 {[%clk 0:00:53]} 30. Rxd8+ {[%clk 0:00:29]}  Nxd8 {[%clk 0:00:53]} 31. Qd6 {[%clk 0:00:30]}  Qe8 {[%clk 0:00:46]} 32. Bg3 {[%clk 0:00:28]}  Nf7 {[%clk 0:00:46]} 33. Qc7 {[%clk 0:00:26]}  h5 {[%clk 0:00:38]} 34. Qxa7 {[%clk 0:00:26]}  Qe3+ {[%clk 0:00:34]} 35. Bf2 {[%clk 0:00:23]}  Qg5+ {[%clk 0:00:34]} 36. Kf1 {[%clk 0:00:23]}  Qxf5 {[%clk 0:00:33]} 37. Qxb6 {[%clk 0:00:22]}  Ng5 {[%clk 0:00:32]} 38. Qb8+ {[%clk 0:00:21]}  Kh7 {[%clk 0:00:32]} 39. Qg3 {[%clk 0:00:20]}  Qb1+ {[%clk 0:00:27]} 40. Kg2 {[%clk 0:00:20]}  Qxa2 {[%clk 0:00:26]} 41. h4 {[%clk 0:00:19]}  Qd5+ {[%clk 0:00:26]} 42. Kf1 {[%clk 0:00:16]}  Qd1+ {[%clk 0:00:24]} 43. Kg2 {[%clk 0:00:16]}  Qd5+ {[%clk 0:00:25]} 44. Kf1 {[%clk 0:00:16]}  Ne4 {[%clk 0:00:22]} 45. Qe3 {[%clk 0:00:14]}  Qd1+ {[%clk 0:00:20]} 46. Kg2 {[%clk 0:00:13]}  Qg4+ {[%clk 0:00:20]} 47. Kh2 {[%clk 0:00:12]}  c4 {[%clk 0:00:18]} 48. Be1 {[%clk 0:00:10]}  g5 {[%clk 0:00:16]} 49. hxg5 {[%clk 0:00:10]}  fxg5 {[%clk 0:00:17]} 50. Qa7+ {[%clk 0:00:09]}  Kg6 {[%clk 0:00:17]} 51. Qb6+ {[%clk 0:00:08]}  Nf6 {[%clk 0:00:17]} 52. Qe3 {[%clk 0:00:07]}  h4 {[%clk 0:00:16]} 53. Bd2 {[%clk 0:00:07]}  Qf5 {[%clk 0:00:15]} 54. Qe7 {[%clk 0:00:07]}  Ng4+ {[%clk 0:00:15]} 55. Kh1 {[%clk 0:00:07]}  Qf1# {[%clk 0:00:14]} 0-1


[Site "https://www.chess.com"]

[Event "Titled Tuesday Blitz May 30 Early 2023"]
[White "Kokoszczynski, Jan"]
[Black "Rose, Felix"]
[WhiteFideId "1174460"]
[BlackFideId "5105722"]
[WhiteElo "2139"]
[BlackElo "2039"]
[Result "1-0"]
[Round "06"]
[TimeControl "180+2"]
[Date "2023.05.30"]
[WhiteClock "0:00:01"]
[BlackClock "0:00:00"]

1. c4 {[%clk 0:02:55]}  e6 {[%clk 0:02:59]} 2. Nc3 {[%clk 0:02:55]}  d5 {[%clk 0:02:59]} 3. d4 {[%clk 0:02:56]}  Nf6 {[%clk 0:03:00]} 4. cxd5 {[%clk 0:02:52]}  exd5 {[%clk 0:03:00]} 5. Bg5 {[%clk 0:02:53]}  c6 {[%clk 0:03:01]} 6. e3 {[%clk 0:02:53]}  Be7 {[%clk 0:03:02]} 7. Bd3 {[%clk 0:02:49]}  Nbd7 {[%clk 0:03:02]} 8. Nge2 {[%clk 0:02:47]}  h6 {[%clk 0:03:03]} 9. Bh4 {[%clk 0:02:46]}  Nh5 {[%clk 0:03:03]} 10. Bxe7 {[%clk 0:02:46]}  Qxe7 {[%clk 0:03:04]} 11. O-O {[%clk 0:02:46]}  O-O {[%clk 0:03:02]} 12. Rc1 {[%clk 0:02:16]}  Nb6 {[%clk 0:03:01]} 13. Bb1 {[%clk 0:02:01]}  g6 {[%clk 0:02:42]} 14. b3 {[%clk 0:01:56]}  Bg4 {[%clk 0:02:37]} 15. Qd2 {[%clk 0:01:53]}  Ng7 {[%clk 0:02:23]} 16. Nf4 {[%clk 0:01:46]}  Bf5 {[%clk 0:02:16]} 17. Nd3 {[%clk 0:01:43]}  Rae8 {[%clk 0:02:14]} 18. Rce1 {[%clk 0:01:35]}  Qf6 {[%clk 0:01:59]} 19. f3 {[%clk 0:01:31]}  Bc8 {[%clk 0:01:55]} 20. Kh1 {[%clk 0:01:26]}  Nf5 {[%clk 0:01:47]} 21. Re2 {[%clk 0:01:15]}  Qh4 {[%clk 0:01:45]} 22. Kg1 {[%clk 0:01:14]}  Re7 {[%clk 0:01:36]} 23. a4 {[%clk 0:01:05]}  Rfe8 {[%clk 0:01:28]} 24. Rfe1 {[%clk 0:00:47]}  Qg5 {[%clk 0:01:22]} 25. Ne5 {[%clk 0:00:33]}  Nd7 {[%clk 0:01:08]} 26. f4 {[%clk 0:00:29]}  Qf6 {[%clk 0:01:03]} 27. Ng4 {[%clk 0:00:23]}  Qg7 {[%clk 0:01:01]} 28. Bxf5 {[%clk 0:00:22]}  gxf5 {[%clk 0:01:01]} 29. Ne5 {[%clk 0:00:20]}  Nf6 {[%clk 0:01:01]} 30. Kh1 {[%clk 0:00:20]}  Ne4 {[%clk 0:01:00]} 31. Qc2 {[%clk 0:00:12]}  f6 {[%clk 0:00:58]} 32. Nf3 {[%clk 0:00:10]}  Kh8 {[%clk 0:00:56]} 33. b4 {[%clk 0:00:07]}  Rg8 {[%clk 0:00:56]} 34. Rg1 {[%clk 0:00:06]}  Qg4 {[%clk 0:00:53]} 35. Nxe4 {[%clk 0:00:06]}  fxe4 {[%clk 0:00:54]} 36. Ne1 {[%clk 0:00:06]}  Reg7 {[%clk 0:00:52]} 37. Rf2 {[%clk 0:00:06]}  Qh4 {[%clk 0:00:51]} 38. Qe2 {[%clk 0:00:06]}  Rg4 {[%clk 0:00:51]} 39. f5 {[%clk 0:00:03]}  R8g5 {[%clk 0:00:49]} 40. Qf1 {[%clk 0:00:03]}  Rh5 {[%clk 0:00:49]} 41. h3 {[%clk 0:00:03]}  Rg3 {[%clk 0:00:47]} 42. Kh2 {[%clk 0:00:03]}  Qg5 {[%clk 0:00:34]} 43. Rf4 {[%clk 0:00:02]}  Rxe3 {[%clk 0:00:26]} 44. Qf2 {[%clk 0:00:02]}  Ra3 {[%clk 0:00:20]} 45. b5 {[%clk 0:00:01]}  Rxa4 {[%clk 0:00:00]} 46. Kh1 {[%clk 0:00:01]} 1-0


[Site "https://www.chess.com"]

[Event "Titled Tuesday Blitz May 30 Early 2023"]
[White "Vaglio Munoz, Jaime"]
[Black "Pham, Le Thao Nguyen"]
[WhiteFideId "6500145"]
[BlackFideId "12401226"]
[WhiteElo "2199"]
[BlackElo "2286"]
[Result "1-0"]
[Round "06"]
[TimeControl "180+2"]
[Date "2023.05.30"]
[WhiteClock "0:01:10"]
[BlackClock "0:00:00"]

1. Nf3 {[%clk 0:03:00]}  d5 {[%clk 0:02:59]} 2. c4 {[%clk 0:03:00]}  dxc4 {[%clk 0:02:51]} 3. e4 {[%clk 0:02:58]}  Nf6 {[%clk 0:02:43]} 4. e5 {[%clk 0:02:57]}  Nd5 {[%clk 0:02:43]} 5. Bxc4 {[%clk 0:02:56]}  c6 {[%clk 0:02:41]} 6. Nc3 {[%clk 0:02:55]}  e6 {[%clk 0:01:42]} 7. O-O {[%clk 0:02:53]}  Be7 {[%clk 0:01:43]} 8. d4 {[%clk 0:02:52]}  b6 {[%clk 0:01:32]} 9. Ne4 {[%clk 0:02:52]}  h6 {[%clk 0:01:30]} 10. a3 {[%clk 0:02:49]}  Ba6 {[%clk 0:01:27]} 11. Bxa6 {[%clk 0:02:46]}  Nxa6 {[%clk 0:01:28]} 12. b4 {[%clk 0:02:45]}  O-O {[%clk 0:01:18]} 13. Be3 {[%clk 0:02:44]}  Nac7 {[%clk 0:01:01]} 14. Rc1 {[%clk 0:02:43]}  Qd7 {[%clk 0:00:56]} 15. Qc2 {[%clk 0:02:42]}  Nxe3 {[%clk 0:00:48]} 16. fxe3 {[%clk 0:02:41]}  Nd5 {[%clk 0:00:48]} 17. Qxc6 {[%clk 0:02:32]}  Qxc6 {[%clk 0:00:44]} 18. Rxc6 {[%clk 0:02:33]}  a5 {[%clk 0:00:36]} 19. Nd6 {[%clk 0:02:10]}  axb4 {[%clk 0:00:25]} 20. axb4 {[%clk 0:02:11]}  Nxe3 {[%clk 0:00:25]} 21. Rfc1 {[%clk 0:02:08]}  Nd5 {[%clk 0:00:23]} 22. b5 {[%clk 0:02:03]}  Ra5 {[%clk 0:00:20]} 23. Nd2 {[%clk 0:01:55]}  Ra4 {[%clk 0:00:16]} 24. N2c4 {[%clk 0:01:51]}  Rb8 {[%clk 0:00:14]} 25. Nc8 {[%clk 0:01:48]}  Bd8 {[%clk 0:00:14]} 26. N8d6 {[%clk 0:01:19]}  Rb4 {[%clk 0:00:15]} 27. Ra1 {[%clk 0:01:14]}  f6 {[%clk 0:00:09]} 28. Ra7 {[%clk 0:01:13]}  fxe5 {[%clk 0:00:08]} 29. dxe5 {[%clk 0:01:13]}  Bg5 {[%clk 0:00:08]} 30. g3 {[%clk 0:01:10]}  Rf8 {[%clk 0:00:08]} 31. Kg2 {[%clk 0:01:10]}  Rb1 {[%clk 0:00:05]} 32. Kh3 {[%clk 0:01:10]}  Be3 {[%clk 0:00:05]} 33. Nxe3 {[%clk 0:01:09]}  Nxe3 {[%clk 0:00:00]} 34. Rcc7 {[%clk 0:01:10]} 1-0


[Site "https://www.chess.com"]

[Event "Titled Tuesday Blitz May 30 Early 2023"]
[White "rikchessmx"]
[Black "Vovk, Orest"]
[BlackFideId "14113490"]
[WhiteElo "2310"]
[BlackElo "2215"]
[Result "0-1"]
[Round "06"]
[TimeControl "180+2"]
[Date "2023.05.30"]
[WhiteClock "0:00:00"]
[BlackClock "0:00:13"]

1. e4 {[%clk 0:01:54]}  g5 {[%clk 0:02:15]} 2. d4 {[%clk 0:01:30]}  g4 {[%clk 0:02:11]} 3. Qxg4 {[%clk 0:01:26]}  d5 {[%clk 0:02:10]} 4. Qf3 {[%clk 0:01:26]}  dxe4 {[%clk 0:02:10]} 5. Qxe4 {[%clk 0:01:26]}  Nf6 {[%clk 0:02:11]} 6. Qe3 {[%clk 0:01:25]}  Nc6 {[%clk 0:02:12]} 7. c3 {[%clk 0:01:25]}  Qd5 {[%clk 0:02:11]} 8. Nf3 {[%clk 0:01:23]}  Bg4 {[%clk 0:02:11]} 9. Be2 {[%clk 0:01:22]}  O-O-O {[%clk 0:02:11]} 10. Na3 {[%clk 0:01:22]}  Rg8 {[%clk 0:02:09]} 11. Bc4 {[%clk 0:01:10]}  Qh5 {[%clk 0:02:08]} 12. Bd2 {[%clk 0:01:01]}  Bxf3 {[%clk 0:02:06]} 13. gxf3 {[%clk 0:01:01]}  Nd5 {[%clk 0:02:04]} 14. Qe4 {[%clk 0:00:56]}  e6 {[%clk 0:02:02]} 15. O-O-O {[%clk 0:00:52]}  Bxa3 {[%clk 0:02:02]} 16. bxa3 {[%clk 0:00:52]}  Rg2 {[%clk 0:01:52]} 17. Be3 {[%clk 0:00:48]}  Rxh2 {[%clk 0:01:45]} 18. Rxh2 {[%clk 0:00:44]}  Qxh2 {[%clk 0:01:44]} 19. Qc2 {[%clk 0:00:41]}  h5 {[%clk 0:01:20]} 20. Bxd5 {[%clk 0:00:28]}  Rxd5 {[%clk 0:01:17]} 21. c4 {[%clk 0:00:28]}  Rd8 {[%clk 0:01:12]} 22. d5 {[%clk 0:00:28]}  Ne5 {[%clk 0:01:10]} 23. Qe4 {[%clk 0:00:27]}  f5 {[%clk 0:01:04]} 24. Qd4 {[%clk 0:00:25]}  b6 {[%clk 0:01:01]} 25. Bf4 {[%clk 0:00:23]}  Nxf3 {[%clk 0:00:50]} 26. Bxh2 {[%clk 0:00:22]}  Nxd4 {[%clk 0:00:51]} 27. Rxd4 {[%clk 0:00:22]}  exd5 {[%clk 0:00:50]} 28. Rxd5 {[%clk 0:00:22]}  Rf8 {[%clk 0:00:45]} 29. Bf4 {[%clk 0:00:20]}  h4 {[%clk 0:00:43]} 30. Rd3 {[%clk 0:00:20]}  Re8 {[%clk 0:00:41]} 31. Kd2 {[%clk 0:00:17]}  Re4 {[%clk 0:00:40]} 32. Rf3 {[%clk 0:00:13]}  Rxc4 {[%clk 0:00:39]} 33. Bg5 {[%clk 0:00:12]}  Ra4 {[%clk 0:00:23]} 34. Rh3 {[%clk 0:00:07]}  Kd7 {[%clk 0:00:17]} 35. Bxh4 {[%clk 0:00:07]}  Ke6 {[%clk 0:00:17]} 36. Bg5 {[%clk 0:00:06]}  c5 {[%clk 0:00:16]} 37. f4 {[%clk 0:00:03]}  Kd5 {[%clk 0:00:16]} 38. Kc2 {[%clk 0:00:03]}  Ke4 {[%clk 0:00:15]} 39. Rh7 {[%clk 0:00:00]}  Rxa3 {[%clk 0:00:13]} 0-1


[Site "https://www.chess.com"]

[Event "Titled Tuesday Blitz May 30 Early 2023"]
[White "Cupid, Kevin"]
[Black "Zaitsev, Alexander"]
[WhiteFideId "7700512"]
[BlackFideId "4164490"]
[WhiteElo "2124"]
[BlackElo "2373"]
[Result "0-1"]
[Round "06"]
[TimeControl "180+2"]
[Date "2023.05.30"]
[WhiteClock "0:00:17"]
[BlackClock "0:01:36"]

1. d4 {[%clk 0:01:33]}  Nf6 {[%clk 0:02:58]} 2. Nf3 {[%clk 0:01:33]}  e6 {[%clk 0:02:58]} 3. c4 {[%clk 0:01:33]}  Bb4+ {[%clk 0:02:57]} 4. Bd2 {[%clk 0:01:33]}  c5 {[%clk 0:02:57]} 5. e3 {[%clk 0:01:33]}  O-O {[%clk 0:02:54]} 6. Bd3 {[%clk 0:01:33]}  b6 {[%clk 0:02:53]} 7. O-O {[%clk 0:01:33]}  Bb7 {[%clk 0:02:53]} 8. a3 {[%clk 0:01:33]}  Bxd2 {[%clk 0:02:53]} 9. Nbxd2 {[%clk 0:01:34]}  cxd4 {[%clk 0:02:42]} 10. exd4 {[%clk 0:01:33]}  d5 {[%clk 0:02:43]} 11. Qe2 {[%clk 0:01:32]}  Nc6 {[%clk 0:02:41]} 12. c5 {[%clk 0:01:27]}  a5 {[%clk 0:02:10]} 13. b3 {[%clk 0:01:23]}  bxc5 {[%clk 0:01:57]} 14. dxc5 {[%clk 0:01:23]}  Qe7 {[%clk 0:01:58]} 15. Rfc1 {[%clk 0:01:17]}  e5 {[%clk 0:01:58]} 16. Bf5 {[%clk 0:00:58]}  e4 {[%clk 0:01:50]} 17. Ng5 {[%clk 0:00:17]}  Nd4 {[%clk 0:01:36]} 0-1


[Site "https://www.chess.com"]